fUST/lending_fUST_20240908
["ID","MTS","AMOUNT","RATE_DAILY","PERIOD"]
[337525328,1725737446363,-4636.49870773,0.00021101,2]
[337525329,1725737446373,-537.73644633,0.00021136,2]
[337525330,1725737446382,-500.0,0.00021136,2]
[337525331,1725737446392,-500.0,0.00021136,2]
[337525332,1725737446401,-500.0,0.00021136,2]
[337525333,1725737446411,-319.41326185,0.00021136,2]
[337525334,1725737446420,-257.28302846,0.00021137,3]
[337525336,1725737475590,180.39009,0.00019147,2]
[337525345,1725737810013,250.0,0.00019954,2]
[337525347,1725738006135,176.1204346,0.00019824,2]
[337525348,1725738034827,1827.201115,0.00019259,2]
[337525350,1725738099705,180.39009,0.00018175,2]
[337525351,1725738123675,807.90558,0.00019128,2]
[337525355,1725738341942,250.0,0.00019207,2]
[337525356,1725738384027,174.97163367,0.0002,2]
[337525357,1725738401855,250.0,0.00019334,2]
[337525358,1725738402073,250.0,0.00019387,2]
[337525359,1725738402315,250.0,0.0001944,2]
[337525360,1725738402533,250.0,0.00019493,2]
[337525361,1725738402759,250.0,0.00019546,2]
[337525362,1725738402986,250.0,0.00019599,2]
[337525363,1725738403342,250.0,0.00019652,2]
[337525364,1725738403573,250.0,0.00019705,2]
[337525365,1725738403813,250.0,0.00019758,2]
[337525366,1725738404035,250.0,0.00019811,2]
[337525367,1725738404296,250.0,0.00019864,2]
[337525368,1725738404535,250.0,0.00019917,2]
[337525369,1725738404771,250.0,0.0001997,2]
[337525370,1725738417209,3000.0,0.00019181,2]
[337525371,1725738551160,24900.0,0.00019166,2]
[337525397,1725738633006,171.41846,0.00019886,2]
[337525439,1725738638010,-250.0,0.00020023,2]
[337525441,1725738638019,-239.33418964,0.00020076,2]
[337525442,1725738638031,-10.66581036,0.00020076,2]
[337525443,1725738638041,-206.48089146,0.00020104,2]
[337525444,1725738638051,-250.0,0.00020129,2]
[337525445,1725738638060,-250.0,0.00020182,2]
[337525446,1725738638069,-114.82760432,0.00020197,2]
[337525447,1725738638113,-665.00000032,0.00020197,2]
[337525448,1725738638124,-133.77295236,0.00020197,2]
[337525449,1725738638134,-200.510963,0.00020211,2]
[337525450,1725738638143,-250.0,0.00020235,2]
[337525451,1725738638152,-873.36780401,0.00020241,2]
[337525476,1725739123831,456.800279,0.00019753,2]
[337525479,1725739349405,4232.67181868,0.00019667,2]
[337525480,1725739349724,4232.67181869,0.00019829,2]
[337525485,1725739473590,250.0,0.00019921,2]
[337525486,1725739473889,250.0,0.00019976,2]
[337525505,1725739512254,250.0,0.0001946,2]
[337525507,1725739524119,3000.0,0.00019465,2]
[337525521,1725739563861,24900.0,0.00019465,2]
[337525524,1725739654853,200.510963,0.00019941,2]
[337525537,1725739759946,187.868113,0.0001898,2]
[337525576,1725739832184,-250.0,0.00020031,2]
[337525578,1725739832194,-1801.50041577,0.00020085,2]
[337525580,1725739832203,-250.0,0.00020085,2]
[337525582,1725739832212,-250.0,0.0002014,2]
[337525585,1725739832222,-250.0,0.00020194,2]
[337525590,1725739832232,-228.400139,0.00020215,2]
[337525592,1725739832241,-792.8081414,0.00020228,2]
[337525594,1725739832250,-250.0,0.00020249,2]
[337525596,1725739832259,-250.0,0.00020304,2]
[337525598,1725739832268,-28.21586279,0.00020358,2]
[337525661,1725739838231,-221.78413721,0.00020358,2]
[337525662,1725739838242,-231.56165866,0.00020413,2]
[337525663,1725739838285,-2503.54978228,0.00020413,2]
[337525664,1725739838294,-250.0,0.00020413,2]
[337525665,1725739838305,-250.0,0.00020468,2]
[337525666,1725739838314,-204.64187889,0.00020516,2]
[337525667,1725739838324,-250.0,0.00020522,2]
[337525668,1725739838333,-300.0,0.00020541,2]
[337525669,1725739838342,-300.0,0.00020541,2]
[337525670,1725739838352,-254.27125085,0.00020542,2]
[337525671,1725739838361,-1099.35625452,0.00020542,2]
[337525672,1725739838371,-250.0,0.00020577,2]
[337525673,1725739838380,-250.0,0.00020632,2]
[337525674,1725739838389,-250.0,0.00020686,2]
[337525675,1725739838398,-250.0,0.00020741,2]
[337525676,1725739838408,-250.0,0.00020795,2]
[337525677,1725739838417,-251.0,0.00020822,2]
[337525678,1725739838426,-250.0,0.0002085,2]
[337525679,1725739838438,-250.0,0.00020905,2]
[337525680,1725739838447,-250.0,0.00020959,2]
[337525681,1725739838457,-187.868113,0.00020978,2]
[337525682,1725739838467,-302.30477158,0.00022,2]
[337525683,1725739838476,-302.30477158,0.0002222,2]
[337525684,1725739838484,-420.0,0.00022354,2]
[337525685,1725739838494,-302.30477158,0.0002244,2]
[337525686,1725739838504,-420.0,0.00022595,2]
[337525687,1725739838513,-2213.56270865,0.00022639,2]
[337525699,1725739840304,-261.1159566,0.00020275,2]
[337525700,1725739840322,-2997.88043079,0.00022639,2]
[337525701,1725739840333,-302.30477158,0.0002266,2]
[337525702,1725739840344,-324.36349148,0.00022739,2]
[337525703,1725739840355,-500.0,0.00022739,2]
[337525704,1725739840365,-500.0,0.00022739,2]
[337525705,1725739840376,-500.0,0.00022739,2]
[337525706,1725739840388,-358.10080994,0.00022739,2]
[337525707,1725739840397,-500.0,0.00022739,2]
[337525708,1725739840407,-500.0,0.00022739,2]
[337525709,1725739840416,-500.0,0.00022739,2]
[337525710,1725739840425,-500.0,0.00022739,2]
[337525711,1725739840437,-500.0,0.00022739,2]
[337525712,1725739840446,-500.0,0.00022739,2]
[337525713,1725739840456,-500.0,0.00022739,2]
[337525714,1725739840466,-500.0,0.00022739,2]
[337525715,1725739840479,-500.0,0.00022739,2]
[337525716,1725739840490,-500.0,0.00022739,2]
[337525717,1725739840502,-421.43845838,0.00022739,2]
[337525718,1725739840514,-500.0,0.00022739,2]
[337525719,1725739840523,-500.0,0.00022739,2]
[337525720,1725739840533,-500.0,0.00022739,2]
[337525721,1725739840546,-500.0,0.00022739,2]
[337525722,1725739840557,-500.0,0.00022739,2]
[337525723,1725739840566,-500.0,0.00022739,2]
[337525724,1725739840575,-500.0,0.00022739,2]
[337525725,1725739840585,-500.0,0.00022739,2]
[337525726,1725739840595,-500.0,0.00022739,2]
[337525727,1725739840605,-500.0,0.00022739,2]
[337525728,1725739840614,-500.0,0.00022739,2]
[337525729,1725739840624,-500.0,0.00022739,2]
[337525730,1725739840634,-500.0,0.00022739,2]
[337525731,1725739840643,-500.0,0.00022739,2]
[337525732,1725739840653,-500.0,0.00022739,2]
[337525733,1725739840663,-500.0,0.00022739,2]
[337525734,1725739840672,-601.72356233,0.00022739,2]
[337525735,1725739840682,-500.0,0.00022739,2]
[337525736,1725739840691,-500.0,0.00022739,2]
[337525737,1725739840701,-500.0,0.00022739,2]
[337525738,1725739840710,-500.0,0.00022739,2]
[337525739,1725739840720,-500.0,0.00022739,2]
[337525740,1725739840729,-500.0,0.00022739,2]
[337525741,1725739840739,-547.53,0.0002274,3]
[337525742,1725739840749,-365.0,0.0002274,3]
[337525743,1725739840758,-1165.54844507,0.0002274,3]
[337525787,1725740243417,184.921907,0.00019377,2]
[337525791,1725740592191,666.05788,0.00019569,2]
[337525792,1725740612283,960.1772774,0.00019569,2]
[337525793,1725740655442,24900.0,0.00019569,2]
[337525794,1725740666701,250.0,0.00019716,2]
[337525795,1725740666945,250.0,0.0001977,2]
[337525796,1725740667192,250.0,0.00019824,2]
[337525797,1725740667409,250.0,0.00019878,2]
[337525798,1725740667782,250.0,0.00019932,2]
[337525799,1725740667980,250.0,0.00019986,2]
[337525804,1725740716978,3000.0,0.00019331,2]
[337525808,1725740748050,171.41846,0.00019178,2]
[337525811,1725740770944,184.921907,0.00018255,2]
[337525812,1725740847331,3116.636708,0.00019231,2]
[337525814,1725740922706,1410.5297035,0.00014,2]
[337525815,1725740923087,28110.6173217,0.0001,2]
[337525819,1725740957473,1509.4252531,0.00019315,2]
[337525825,1725741008121,1580.6972054,0.00019315,2]
[337525889,1725741038292,-250.0,0.0002004,2]
[337525891,1725741038302,-300.0,0.00020078,2]
[337525893,1725741038311,-300.0,0.00020078,2]
[337525895,1725741038320,-11211.16430293,0.00020079,2]
[337525945,1725741243224,24900.0,0.00019886,2]
[337525946,1725741308906,192.52266932,0.00019979,2]
[337525947,1725741356051,3000.0,0.00019808,2]
[337525954,1725741539817,200.0,0.00020334,120]
[337525961,1725741891651,1558.318354,0.00019237,2]
[337525963,1725741938653,3000.0,0.00019253,2]
[337525991,1725742232458,-192.52266932,0.00020014,2]
[337525993,1725742232469,-300.0,0.00020122,2]
[337525995,1725742232478,-2051.23733068,0.00020123,2]
[337526001,1725742238340,234.507702,0.00019541,2]
[337526052,1725742269397,7939.2443519,0.00019992,2]
[337526054,1725742284523,192.52266932,0.00019914,2]
[337526055,1725742343282,254.27125085,0.00019914,2]
[337526056,1725742360379,24900.0,0.00019915,2]
[337526057,1725742408592,192.52266932,0.00019914,2]
[337526058,1725742433428,3000.0,0.00020007,2]
[337526068,1725742730239,204.64187889,0.00019913,2]
[337526073,1725742828885,171.41846,0.0001989,2]
[337526075,1725742873911,779.159177,0.00019471,2]
[337526076,1725742910577,1439.301607,0.0001,2]
[337526079,1725743056166,3000.0,0.00019459,2]
[337526080,1725743069717,250.0,0.00019596,2]
[337526081,1725743069924,250.0,0.0001965,2]
[337526082,1725743070170,250.0,0.00019704,2]
[337526083,1725743070375,250.0,0.00019758,2]
[337526084,1725743070597,250.0,0.00019811,2]
[337526085,1725743070834,250.0,0.00019865,2]
[337526086,1725743071076,250.0,0.00019919,2]
[337526087,1725743071427,250.0,0.00019973,2]
[337526089,1725743218749,218.30680653,0.00019927,2]
[337526093,1725743389571,389.579588,0.00019173,2]
[337526107,1725743432681,-1099.35625452,0.00020022,2]
[337526108,1725743432691,-250.0,0.00020027,2]
[337526109,1725743432701,-218.30680652,0.00020035,2]
[337526110,1725743432710,-250.0,0.0002008,2]
[337526111,1725743432719,-250.0,0.00020134,2]
[337526112,1725743432728,-218.30680652,0.00020142,2]
[337526113,1725743432738,-250.0,0.00020188,2]
[337526114,1725743432747,-1048.6091838,0.00020212,2]
[337526115,1725743432756,-300.0,0.00020222,2]
[337526116,1725743432766,-300.0,0.00020222,2]
[337526117,1725743432775,-11971.76684272,0.00020223,2]
[337526148,1725743440930,-12928.23315728,0.00020223,2]
[337526150,1725743440939,-250.0,0.00020242,2]
[337526151,1725743440949,-151.0,0.00020295,2]
[337526153,1725743440959,-250.0,0.00020295,2]
[337526155,1725743440969,-250.0,0.00020349,2]
[337526156,1725743440978,-250.0,0.00020403,2]
[337526157,1725743440988,-250.0,0.00020457,2]
[337526158,1725743440998,-250.0,0.0002051,2]
[337526159,1725743441008,-151.0,0.0002053,2]
[337526160,1725743441018,-151.0,0.0002053,2]
[337526161,1725743441038,-151.0,0.0002053,2]
[337526162,1725743441050,-151.0,0.0002053,2]
[337526163,1725743441060,-151.0,0.0002053,2]
[337526164,1725743441070,-250.0,0.00020564,2]
[337526165,1725743441081,-151.0,0.00020609,2]
[337526166,1725743441091,-156.890136,0.00020609,2]
[337526167,1725743441101,-500.0,0.00020609,2]
[337526168,1725743441111,-500.0,0.00020609,2]
[337526169,1725743441120,-560.17235623,0.00020609,2]
[337526170,1725743441130,-6859.78637293,0.0002061,2]
[337526171,1725743441143,-151.0,0.0002061,2]
[337526172,1725743441153,-151.0,0.0002061,2]
[337526173,1725743441162,-151.0,0.0002061,2]
[337526174,1725743441172,-151.0,0.0002061,2]
[337526175,1725743441183,-151.0,0.0002061,2]
[337526176,1725743441192,-250.0,0.00020618,2]
[337526177,1725743441203,-251.0,0.00020822,2]
[337526178,1725743441214,-151.0,0.00020942,2]
[337526179,1725743441225,-254.006526,0.00020942,2]
[337526180,1725743441236,-151.0,0.00021376,2]
[337526181,1725743441246,-151.0,0.00021376,2]
[337526182,1725743441257,-286.07553124,0.000219,2]
[337526183,1725743441266,-269.0487176,0.00021918,2]
[337526184,1725743441276,-160.36465505,0.00022,2]
[337526244,1725744153481,3000.0,0.00019621,2]
[337526246,1725744251872,194.789794,0.00019646,2]
[337526250,1725744515466,24900.0,0.00019636,2]
[337526314,1725744637966,-173.867819,0.00020057,2]
[337526315,1725744637976,-250.0,0.00020348,2]
[337526316,1725744637987,-250.0,0.00020404,2]
[337526317,1725744637996,-250.0,0.0002046,2]
[337526318,1725744638005,-250.0,0.00020515,2]
[337526319,1725744638015,-250.0,0.00020571,2]
[337526320,1725744638024,-250.0,0.00020627,2]
[337526321,1725744638033,-250.0,0.00020683,2]
[337526322,1725744638046,-250.0,0.00020739,2]
[337526323,1725744638057,-300.0,0.00020768,2]
[337526324,1725744638068,-2503.54978228,0.00020792,2]
[337526325,1725744638078,-250.0,0.00020794,2]
[337526326,1725744638088,-500.9047182,0.000208,2]
[337526327,1725744638098,-158.5,0.000208,2]
[337526328,1725744638109,-179.01799675,0.000208,2]
[337526329,1725744638120,-500.0,0.000208,2]
[337526330,1725744638131,-500.0,0.000208,2]
[337526331,1725744638141,-251.0,0.00020822,2]
[337526332,1725744638151,-250.0,0.0002085,2]
[337526333,1725744638162,-250.0,0.00020906,2]
[337526334,1725744638172,-250.0,0.00020962,2]
[337526335,1725744638182,-250.0,0.00021018,2]
[337526336,1725744638192,-250.0,0.00021073,2]
[337526337,1725744638202,-250.0,0.00021129,2]
[337526338,1725744638212,-250.0,0.00021185,2]
[337526339,1725744638222,-250.0,0.00021241,2]
[337526340,1725744638233,-250.0,0.00021297,2]
[337526341,1725744638244,-1000.0,0.00021348,2]
[337526342,1725744638255,-785.74685697,0.00021348,2]
[337526343,1725744638399,-214.25314303,0.00021348,2]
[337526344,1725744638409,-250.0,0.00021353,2]
[337526345,1725744638418,-151.0,0.00021353,2]
[337526346,1725744638427,-250.0,0.00021408,2]
[337526347,1725744638437,-33.53656716,0.00021572,2]
[337526348,1725744638449,-267.95143284,0.00021572,2]
[337526349,1725744638459,-1528.262835,0.00021767,2]
[337526350,1725744638470,-438.63428303,0.00021767,2]
[337526351,1725744638480,-151.0,0.00021897,2]
[337526352,1725744638489,-190.71702082,0.00021954,2]
[337526353,1725744638499,-190.71702081,0.00021998,2]
[337526354,1725744638509,-513.94636139,0.00021999,2]
[337526355,1725744638519,-6209.71268932,0.00022,2]
[337526356,1725744638529,-151.0,0.00022,7]
[337526357,1725744638539,-151.0,0.00022,7]
[337526358,1725744638549,-190.71702081,0.00022041,2]
[337526359,1725744638559,-364.09,0.00022044,3]
[337526360,1725744638569,-182.05,0.00022044,3]
[337526361,1725744638578,-546.16,0.00022044,3]
[337526362,1725744638587,-151.0,0.00022052,7]
[337526363,1725744638597,-151.0,0.00022053,7]
[337526364,1725744638607,-151.0,0.00022053,7]
[337526365,1725744638618,-218.38113207,0.00022053,2]
[337526366,1725744638628,-151.0,0.00022054,7]
[337526367,1725744638638,-8024.61154887,0.00022054,3]
[337526377,1725744640044,-28128.9883879,0.00022054,3]
[337526378,1725744640057,-10794.66206768,0.00022054,3]
[337526382,1725744642917,-264.22224543,0.0002112,2]
[337526396,1725744646013,-781.34111712,0.0002112,2]
[337526398,1725744851743,150.0,0.00038133,30]
[337526401,1725745347174,250.0,0.00019972,2]
[337526402,1725745475802,194.7897951,0.00019442,2]
[337526404,1725745483159,2257.1024846,0.00019442,2]
[337526405,1725745508667,24900.0,0.00019438,2]
[337526406,1725745592485,484.7348308,0.00019413,2]
[337526408,1725745646585,171.106553,0.00019178,2]
[337526409,1725745719932,3000.0,0.00019422,2]
[337526410,1725745729675,250.0,0.00019411,2]
[337526413,1725745825248,250.0,0.00019689,2]
[337526414,1725745825461,250.0,0.00019743,2]
[337526415,1725745825686,250.0,0.00019797,2]
[337526416,1725745825986,250.0,0.00019851,2]
[337526417,1725745826142,250.0,0.00019905,2]
[337526418,1725745826363,250.0,0.00019959,2]
[337526434,1725745832161,-250.0,0.00020013,2]
[337526436,1725745832170,-250.0,0.00020067,2]
[337526438,1725745832180,-250.0,0.00020121,2]
[337526440,1725745832191,-250.0,0.00020175,2]
[337526442,1725745832201,-309.5763395,0.00020211,2]
[337526444,1725745832212,-250.0,0.00020229,2]
[337526446,1725745832221,-250.0,0.00020283,2]
[337526448,1725745832231,-250.0,0.00020337,2]
[337526450,1725745832242,-250.0,0.00020391,2]
[337526452,1725745832251,-167.15689731,0.00020419,2]
[337526453,1725745832261,-250.0,0.00020445,2]
[337526455,1725745832271,-250.0,0.00020499,2]
[337526457,1725745832281,-250.0,0.00020553,2]
[337526459,1725745832292,-250.0,0.00020607,2]
[337526461,1725745832301,-250.0,0.00020661,2]
[337526463,1725745832310,-300.0,0.00020661,2]
[337526465,1725745832321,-300.0,0.00020661,2]
[337526466,1725745832330,-102.16287263,0.00020662,2]
[337526467,1725745832344,-48.83712737,0.00020662,2]
[337526468,1725745832357,-151.0,0.00020663,2]
[337526469,1725745832367,-151.0,0.00020663,2]
[337526470,1725745832377,-151.0,0.00020663,2]
[337526471,1725745832386,-151.0,0.00020663,2]
[337526472,1725745832396,-155.206656,0.00020663,2]
[337526473,1725745832406,-151.258725,0.00020664,2]
[337526474,1725745832415,-151.0,0.00020664,2]
[337526475,1725745832425,-151.0,0.00020664,2]
[337526476,1725745832434,-250.0,0.00020715,2]
[337526477,1725745832443,-251.0,0.00020822,2]
[337526478,1725745832453,-901.68198491,0.00020956,2]
[337526479,1725745832463,-150.0,0.00021109,2]
[337526480,1725745832473,-150.59905972,0.00021521,2]
[337526481,1725745832482,-3208.27654849,0.00021911,2]
[337526482,1725745832492,-5867.18538095,0.00021924,2]
[337526483,1725745832502,-5867.18538095,0.00021961,2]
[337526484,1725745832511,-5867.18538095,0.00021999,2]
[337526485,1725745832521,-302.30477158,0.00022,2]
[337526486,1725745832530,-151.0,0.00022019,7]
[337526487,1725745832540,-6945.04508178,0.00022021,2]
[337526488,1725745832550,-300.346792,0.00022024,7]
[337526489,1725745832560,-5867.18538095,0.00022036,2]
[337526490,1725745832571,-513.94636139,0.00022052,2]
[337526491,1725745832580,-4606.25875642,0.00022073,2]
[337526495,1725745838171,-500.0,0.00020661,2]
[337526496,1725745838181,-376.9399101,0.00020661,2]
[337526503,1725745840327,-123.0600899,0.00020661,2]
[337526504,1725745840337,-500.0,0.00020661,2]
[337526505,1725745840347,-500.0,0.00020661,2]
[337526506,1725745840358,-500.0,0.00020661,2]
[337526507,1725745840367,-500.0,0.00020661,2]
[337526508,1725745840376,-500.0,0.00020661,2]
[337526509,1725745840386,-500.0,0.00020661,2]
[337526510,1725745840395,-500.0,0.00020661,2]
[337526511,1725745840405,-262.10511335,0.00020661,2]
[337526512,1725745840417,-115.43677828,0.00020661,2]
[337526513,1725745840427,-500.0,0.00020661,2]
[337526514,1725745840437,-500.0,0.00020661,2]
[337526515,1725745840447,-441.16281248,0.00020661,2]
[337526516,1725745840456,-500.0,0.00020661,2]
[337526517,1725745840465,-500.0,0.00020661,2]
[337526518,1725745840475,-500.0,0.00020661,2]
[337526519,1725745840484,-500.0,0.00020661,2]
[337526520,1725745840495,-500.0,0.00020661,2]
[337526521,1725745840505,-500.0,0.00020661,2]
[337526522,1725745840514,-500.0,0.00020661,2]
[337526523,1725745840524,-198.6779974,0.00020661,2]
[337526524,1725745840540,-301.3220026,0.00020661,2]
[337526525,1725745840550,-500.0,0.00020661,2]
[337526526,1725745840559,-500.0,0.00020661,2]
[337526527,1725745840569,-500.0,0.00020661,2]
[337526528,1725745840580,-500.0,0.00020661,2]
[337526529,1725745840589,-500.0,0.00020661,2]
[337526530,1725745840599,-500.0,0.00020661,2]
[337526531,1725745840608,-500.0,0.00020661,2]
[337526532,1725745840618,-500.0,0.00020661,2]
[337526533,1725745840627,-500.0,0.00020661,2]
[337526534,1725745840637,-500.0,0.00020661,2]
[337526535,1725745840646,-500.0,0.00020661,2]
[337526536,1725745840656,-500.0,0.00020661,2]
[337526537,1725745840665,-500.0,0.00020661,2]
[337526538,1725745840675,-500.0,0.00020661,2]
[337526539,1725745840685,-500.0,0.00020661,2]
[337526540,1725745840695,-500.0,0.00020661,2]
[337526541,1725745840705,-500.0,0.00020661,2]
[337526542,1725745840714,-500.0,0.00020661,2]
[337526543,1725745840723,-500.0,0.00020661,2]
[337526544,1725745840733,-500.0,0.00020661,2]
[337526545,1725745840743,-500.0,0.00020661,2]
[337526546,1725745840753,-500.0,0.00020661,2]
[337526547,1725745840762,-500.0,0.00020661,2]
[337526548,1725745840772,-500.0,0.00020661,2]
[337526549,1725745840783,-500.0,0.00020661,2]
[337526550,1725745840794,-500.0,0.00020661,2]
[337526551,1725745840805,-500.0,0.00020661,2]
[337526552,1725745840818,-543.99948791,0.00020661,2]
[337526553,1725745840829,-500.0,0.00020661,2]
[337526554,1725745840840,-500.0,0.00020661,2]
[337526555,1725745840850,-151.0,0.00020662,2]
[337526556,1725745840863,-500.0,0.00021918,2]
[337526557,1725745840873,-161.08215397,0.00021918,2]
[337526558,1725745840883,-500.0,0.00021918,2]
[337526559,1725745840893,-500.0,0.00021918,2]
[337526560,1725745840904,-500.0,0.00021918,2]
[337526561,1725745840915,-500.0,0.00021918,2]
[337526562,1725745840925,-500.0,0.00021918,2]
[337526563,1725745840936,-1260.92662453,0.00022073,2]
[337526564,1725745840948,-182.04,0.0002209,3]
[337526565,1725745840958,-546.16,0.0002209,3]
[337526566,1725745840968,-500.0,0.00022099,2]
[337526567,1725745840977,-500.0,0.00022099,2]
[337526568,1725745840988,-195.41518398,0.00022099,2]
[337526569,1725745840998,-500.0,0.00022099,2]
[337526570,1725745841009,-500.0,0.00022099,2]
[337526571,1725745841019,-500.0,0.00022099,2]
[337526572,1725745841029,-500.0,0.00022099,2]
[337526573,1725745841039,-500.0,0.00022099,2]
[337526574,1725745841048,-481.00587448,0.00022099,2]
[337526575,1725745841058,-5279.64047587,0.000221,3]
[337526587,1725745843470,-32901.76844969,0.000221,3]
[337526588,1725745843483,-2116.64303488,0.000221,3]
[337526589,1725745843497,-3752.45492092,0.000221,3]
[337526592,1725745846223,-487.2593196,0.000221,3]
[337526594,1725746088414,2221.2509736,0.00019173,2]
[337526596,1725746122409,3108.7224854,0.000197,2]
[337526597,1725746136056,642.007046,0.00019173,2]
[337526598,1725746191964,169.60454,0.00019403,2]
[337526600,1725746257254,3000.0,0.00019173,2]
[337526601,1725746258465,250.0,0.00019677,2]
[337526602,1725746318265,1295.8256114,0.00019668,2]
[337526603,1725746344650,5513.3725741,0.00019173,2]
[337526604,1725746360478,250.0,0.00019811,2]
[337526605,1725746360697,250.0,0.00019866,2]
[337526606,1725746360916,250.0,0.0001992,2]
[337526607,1725746361369,250.0,0.00019974,2]
[337526608,1725746403161,4398.9807237,0.00019503,2]
[337526609,1725746405458,744.4024012,0.00019503,2]
[337526610,1725746521898,302.491262,0.00019501,2]
[337526679,1725746632300,24900.0,0.00019494,2]
[337526680,1725746756265,250.0,0.00019173,2]
[337526682,1725746768950,3000.0,0.00019874,2]
[337526683,1725746803569,1527.3229588,0.00019326,2]
[337526686,1725747014203,302.491262,0.00019173,2]
[337526702,1725747032203,-250.0,0.00020144,2]
[337526703,1725747032212,-250.0,0.00020199,2]
[337526704,1725747032221,-250.0,0.00020254,2]
[337526705,1725747032230,-250.0,0.0002031,2]
[337526706,1725747032239,-250.0,0.00020365,2]
[337526707,1725747032248,-250.0,0.0002042,2]
[337526708,1725747032257,-250.0,0.00020475,2]
[337526713,1725747032344,-250.0,0.0002053,2]
[337526714,1725747032354,-250.0,0.00020586,2]
[337526715,1725747032363,-250.0,0.00020641,2]
[337526716,1725747032373,-250.0,0.00020696,2]
[337526717,1725747032382,-250.0,0.00020751,2]
[337526718,1725747032391,-250.0,0.00020807,2]
[337526719,1725747032400,-251.0,0.00020822,2]
[337526720,1725747032409,-250.0,0.00020862,2]
[337526721,1725747032418,-250.0,0.00020917,2]
[337526722,1725747032427,-250.0,0.00020972,2]
[337526723,1725747032436,-250.0,0.00021028,2]
[337526724,1725747032445,-250.0,0.00021083,2]
[337526725,1725747032454,-250.0,0.00021138,2]
[337526726,1725747032463,-250.0,0.00021193,2]
[337526727,1725747032472,-610.09742093,0.00021773,2]
[337526728,1725747032482,-161.17924454,0.00021793,2]
[337526729,1725747032582,-138.82075546,0.00021793,2]
[337526730,1725747032592,-300.0,0.00021793,2]
[337526731,1725747032601,-500.0,0.00021893,2]
[337526732,1725747032611,-500.0,0.00021917,2]
[337526733,1725747032622,-500.0,0.00021917,2]
[337526734,1725747032631,-500.0,0.00021917,2]
[337526735,1725747032640,-500.0,0.00021917,2]
[337526736,1725747032649,-500.0,0.00021917,2]
[337526737,1725747032658,-158.78768009,0.00021917,2]
[337526738,1725747032671,-341.21231991,0.00021917,2]
[337526739,1725747032680,-500.0,0.00021917,2]
[337526740,1725747032689,-500.0,0.00021917,2]
[337526741,1725747032698,-500.0,0.00021917,2]
[337526742,1725747032709,-500.0,0.00021917,2]
[337526743,1725747032718,-500.0,0.00021917,2]
[337526744,1725747032727,-500.0,0.00021917,2]
[337526745,1725747032737,-500.0,0.00021917,2]
[337526746,1725747032746,-500.0,0.00021917,2]
[337526747,1725747032755,-500.0,0.00021917,2]
[337526748,1725747032765,-500.0,0.00021917,2]
[337526749,1725747032774,-500.0,0.00021917,2]
[337526750,1725747032784,-500.0,0.00021917,2]
[337526751,1725747032794,-500.0,0.00021917,2]
[337526752,1725747032804,-500.0,0.00021917,2]
[337526753,1725747032814,-500.0,0.00021917,2]
[337526754,1725747032824,-500.0,0.00021917,2]